bitfinex/quotes_SOLUSD_20251103
["timestamp","ask_amount","ask_price","bid_price","bid_amount"]
[1762145002747,3.73747292,177.59,177.56,6.32158311]
[1762145002971,3.73747292,177.58,177.56,6.32158311]
[1762145003172,20.592,177.6,177.57,0.69]
[1762145003469,3.73841424,177.59,177.57,0.69]
[1762145003632,3.73841424,177.58,177.56,5.63158311]
[1762145003835,3.73841424,177.57,177.56,5.63158311]
[1762145004060,5.97100585,177.57,177.55,9.74935966]
[1762145004259,20.592,177.6,177.55,9.74935966]
[1762145004260,5.97100585,177.56,177.55,9.74935966]
[1762145005167,5.97100585,177.56,177.55,16.04157593]
[1762145005853,5.97100585,177.56,177.55,10.40935966]
[1762145006847,5.97100585,177.56,177.55,16.04157593]
[1762145007552,5.97100585,177.56,177.55,9.74935966]
[1762145008838,5.97100585,177.56,177.55,16.04157593]
[1762145009261,5.97100585,177.56,177.55,9.74935966]
[1762145010147,10.65719981,177.56,177.55,9.74935966]
[1762145011557,10.65719981,177.56,177.55,10.40935966]
[1762145011968,5.97100585,177.56,177.55,9.74935966]
[1762145012976,3.73841424,177.56,177.55,16.04157593]
[1762145013178,10.60570071,177.56,177.55,9.74935966]
[1762145013550,5.97100585,177.56,177.55,9.74935966]
[1762145014946,21.39173261,177.56,177.55,0.22638516]
[1762145015169,20.3898701,177.56,177.55,0.22638516]
[1762145015573,26.02176917,177.56,177.55,0.22638516]
[1762145015754,21.39173261,177.56,177.55,0.22638516]
[1762145017263,5.97100585,177.56,177.55,0.22638516]
[1762145020451,11.60290492,177.56,177.55,0.22638516]
[1762145020653,21.39173261,177.56,177.55,0.22638516]
[1762145020851,70.592,177.54,177.53,0.1]
[1762145021049,83.42027091,177.54,177.53,0.1]
[1762145022050,31.1876793,177.54,177.53,0.1]
[1762145022250,83.42027091,177.54,177.53,0.1]
[1762145022463,84.5876212,177.54,177.53,0.1]
[1762145022681,89.05280442,177.54,177.53,0.1]
[1762145022984,86.82021281,177.54,177.53,0.1]
[1762145023352,82.19553936,177.54,177.53,0.1]
[1762145023782,26.56300585,177.54,177.53,0.1]
[1762145023958,26.56300585,177.54,177.53,0.82]
[1762145024754,26.56300585,177.54,177.53,0.1]
[1762145024960,31.18579565,177.54,177.53,0.1]
[1762145025391,31.18579565,177.54,177.53,0.82]
[1762145026195,31.18579565,177.54,177.53,0.1]
[1762145026672,26.56300585,177.54,177.53,0.1]
[1762145030270,26.56300585,177.54,177.53,0.00718056]
[1762145032291,26.56300585,177.54,177.51,6.35341051]
[1762145032592,2.23259161,177.52,177.48,19.72053188]
[1762145032977,2.23259161,177.52,177.49,0.72]
[1762145033367,3.71818771,177.51,177.49,0.72]
[1762145033591,2.23259161,177.52,177.49,0.72]
[1762145033798,3.71868099,177.51,177.49,0.72]
[1762145034096,3.71868099,177.5,177.49,0.72]
[1762145034297,3.72517577,177.5,177.49,0.72]
[1762145034789,5.95776738,177.5,177.49,0.72]
[1762145035668,3.72517577,177.5,177.49,6.35412023]
[1762145036465,10.58184849,177.5,177.49,0.72]
[1762145037293,10.58184849,177.5,177.49,6.35412023]
[1762145037472,8.34925688,177.5,177.49,0.72]
[1762145037678,8.40322455,177.5,177.46,5.63507269]
[1762145037859,2.23259161,177.49,177.46,6.35507269]
[1762145038064,3.74242841,177.48,177.47,0.72]
[1762145038466,5.97502002,177.48,177.47,0.72]
[1762145038682,5.97502002,177.48,177.47,6.35475516]
[1762145038865,3.74242841,177.48,177.47,6.35475516]
[1762145039281,3.74242841,177.48,177.47,0.72]
[1762145039476,5.97502002,177.48,177.47,6.35475516]
[1762145039790,3.74242841,177.48,177.47,6.35475516]
[1762145040177,3.74242841,177.48,177.44,6.91064039]
[1762145040374,3.74242841,177.47,177.44,6.91064039]
[1762145040580,3.74242841,177.46,177.44,6.91064039]
[1762145040783,3.74242841,177.45,177.44,6.91064039]
[1762145040981,3.74242841,177.45,177.44,9.143232]
[1762145041174,3.74242841,177.45,177.44,14.77893984]
[1762145042204,3.74242841,177.45,177.44,15.49893984]
[1762145042607,3.74242841,177.45,177.44,13.26634823]
[1762145045003,4.67804878,177.52,177.47,20.592]
[1762145045168,4.67804878,177.53,177.51,2.23259161]
[1762145045373,4.67804878,177.53,177.52,0.72]
[1762145045678,4.67804878,177.53,177.52,6.72489795]
[1762145046100,2.23259161,177.54,177.52,6.00489795]
[1762145046304,2.23259161,177.53,177.49,0.7]
[1762145046482,0.68,177.55,177.49,6.70489795]
[1762145046483,2.23259161,177.5,177.49,6.70489795]
[1762145046682,2.23259161,177.5,177.49,5.63412023]
[1762145046985,2.23259161,177.5,177.48,5.634435]
[1762145047189,2.23259161,177.49,177.48,5.634435]
[1762145048227,2.23259161,177.49,177.46,14.0869361]
[1762145048427,2.23259161,177.49,177.46,14.7869361]
[1762145048598,2.23259161,177.49,177.46,19.46498488]
[1762145048791,2.23259161,177.48,177.46,19.46498488]
[1762145049262,2.23259161,177.47,177.44,5.63570784]
[1762145049436,2.23259161,177.45,177.44,16.94867376]
[1762145049800,2.23259161,177.45,177.42,6.33629381]
[1762145050023,2.23259161,177.44,177.43,0.7]
[1762145050202,25.95004878,177.49,177.43,0.7]
[1762145050519,2.23259161,177.44,177.43,0.7]
[1762145051023,20.592,177.49,177.43,2.93259161]
[1762145051230,70.28619477,177.5,177.44,19.72497745]
[1762145051443,70.28619477,177.5,177.46,2.23259161]
[1762145051596,70.28619477,177.5,177.47,0.7]
[1762145053814,70.28619477,177.5,177.48,5.63443768]
[1762145054196,70.28619477,177.5,177.49,0.7]
[1762145054521,70.28619477,177.5,177.48,6.33443768]
[1762145054911,4.17833084,177.49,177.46,5.63478303]
[1762145055112,3.49833084,177.48,177.46,5.63478303]
[1762145055839,3.49833084,177.48,177.45,5.63539025]
[1762145056211,3.49833084,177.48,177.45,6.33539025]
[1762145056607,90.87819477,177.5,177.45,6.33539025]
[1762145056812,3.77990987,177.49,177.46,4.19833084]
[1762145057040,3.77990987,177.48,177.46,4.19833084]
[1762145057230,3.77990987,177.49,177.47,0.7]
[1762145057534,90.87819477,177.5,177.47,0.7]
[1762145057839,70.28619477,177.5,177.49,3.49833084]
[1762145058025,70.28619477,177.5,177.49,9.83245107]
[1762145058534,70.28619477,177.56,177.49,23.91775165]
[1762145058720,3.78338055,177.55,177.52,3.49833084]
[1762145058938,3.78338055,177.55,177.54,3.49833084]
[1762145059138,70.28619477,177.56,177.52,3.49833084]
[1762145059444,70.28619477,177.56,177.53,3.49833084]
[1762145059811,70.28619477,177.56,177.54,0.7]
[1762145060125,20.592,177.58,177.55,5.63221627]
[1762145060335,3.78329258,177.57,177.55,5.63221627]
[1762145061138,7.28162342,177.57,177.55,5.63221627]
[1762145061309,3.49833084,177.56,177.51,0.7]
[1762145061510,3.49833084,177.53,177.51,0.7]
[1762145061730,3.49833084,177.54,177.51,0.7]
[1762145061913,3.49833084,177.56,177.52,5.63316809]
[1762145062226,3.78329258,177.55,177.52,5.63316809]
[1762145062539,3.78329258,177.54,177.53,0.7]
[1762145062741,3.77953645,177.54,177.53,0.7]
[1762145064012,3.77953645,177.54,177.53,6.33285078]
[1762145064222,4.72442056,177.63,177.53,28.53213112]
[1762145064418,12.84157394,177.63,177.57,8.11715338]
[1762145064658,28.70915338,177.63,177.57,8.11715338]
[1762145064947,8.11715338,177.62,177.58,0.7]
[1762145065121,8.11715338,177.62,177.58,17.635279]
[1762145065463,8.11715338,177.6,177.59,5.63094768]
[1762145065756,8.11715338,177.6,177.57,14.07855104]
[1762145065757,8.11715338,177.6,177.57,16.93623507]
[1762145065924,8.11715338,177.58,177.57,5.63152067]
[1762145066124,8.11715338,177.58,177.55,5.63192973]
[1762145066468,8.11715338,177.56,177.55,5.63192973]
[1762145067125,20.592,177.59,177.55,6.32192973]
[1762145067339,8.11715338,177.57,177.55,6.32192973]
[1762145067749,8.11715338,177.57,177.56,0.69]
[1762145067949,8.11715338,177.58,177.56,0.69]
[1762145068323,28.70915338,177.59,177.56,0.69]
[1762145068519,8.11715338,177.57,177.55,5.63192973]
[1762145068731,8.11715338,177.56,177.53,23.26357946]
[1762145068949,26.22272571,177.6,177.44,28.17829448]
[1762145068950,8.11715338,177.54,177.44,28.17829448]
[1762145069151,8.11715338,177.51,177.5,16.94293056]
[1762145069335,8.11715338,177.51,177.5,5.63380281]
[1762145069723,8.11715338,177.51,177.49,16.94293056]
[1762145070033,29.37915338,177.5,177.43,0.69]
[1762145070255,8.11715338,177.44,177.42,16.95058903]
[1762145070465,8.11715338,177.43,177.37,8.80715338]
[1762145070660,8.11715338,177.43,177.4,16.95058903]
[1762145071178,8.11715338,177.42,177.39,5.63729635]
[1762145071356,8.11715338,177.42,177.39,6.32729635]
[1762145071558,8.11715338,177.42,177.39,5.63729635]
[1762145071750,8.11715338,177.42,177.4,0.69]
[1762145071947,8.11715338,177.41,177.4,0.69]
[1762145072174,8.11715338,177.42,177.4,0.69]
[1762145073376,0.67,177.46,177.41,5.63666084]
[1762145073550,8.11715338,177.43,177.41,5.63666084]
[1762145074348,8.11715338,177.42,177.4,6.32686107]
[1762145074565,8.11715338,177.42,177.4,5.63686107]
[1762145074769,8.11715338,177.42,177.4,6.32686107]
[1762145075076,8.11715338,177.43,177.4,6.32686107]
[1762145078161,8.11715338,177.42,177.4,5.63686107]
[1762145078359,8.11715338,177.41,177.4,5.63686107]
[1762145079473,0.69,177.44,177.39,19.73053723]
[1762145079649,8.11715338,177.42,177.4,0.67]
[1762145079849,8.11715338,177.43,177.4,0.67]
[1762145080874,8.11715338,177.44,177.4,0.67]
[1762145081073,8.11715338,177.43,177.4,0.67]
[1762145081277,8.11715338,177.42,177.4,0.67]
[1762145081489,8.11715338,177.42,177.41,5.63666084]
[1762145082185,8.11715338,177.42,177.41,6.30666084]
[1762145082473,4.45066665,177.45,177.41,5.63666084]
[1762145082678,8.11715338,177.43,177.4,5.63697857]
[1762145082980,8.11715338,177.43,177.4,6.30697857]
[1762145083163,11.87782003,177.44,177.41,0.67]
[1762145083357,8.11715338,177.44,177.41,0.67]
[1762145083977,8.11715338,177.43,177.41,0.67]
[1762145084362,4.44917589,177.46,177.41,0.67]
[1762145084566,3.50143336,177.43,177.42,5.63634314]
[1762145086308,4.44917589,177.46,177.42,20.39720099]
[1762145086309,3.50143336,177.45,177.42,20.39720099]
[1762145086490,3.50143336,177.44,177.42,20.39720099]
[1762145086912,3.75917589,177.46,177.43,0.67]
[1762145087112,3.50143336,177.47,177.43,0.67]
[1762145087318,3.75737171,177.49,177.45,3.50143336]
[1762145087493,7.25880507,177.52,177.46,3.50143336]
[1762145087692,3.50143336,177.5,177.47,0.67]
[1762145088209,3.50143336,177.5,177.48,5.63443768]
[1762145088513,8.12216552,177.5,177.48,5.63443768]
[1762145088899,11.88061758,177.51,177.48,6.30443768]
[1762145089100,8.12216552,177.51,177.48,5.63443768]
[1762145089300,8.12216552,177.51,177.49,0.67]
[1762145089500,8.12216552,177.51,177.48,6.30443768]
[1762145089695,11.88032346,177.51,177.48,6.30443768]
[1762145089910,32.47232346,177.51,177.48,6.30443768]
[1762145090213,8.12216552,177.5,177.48,6.30443768]
[1762145090588,8.12216552,177.5,177.48,5.63443768]
[1762145091307,8.12216552,177.5,177.48,6.30443768]
[1762145091525,28.71416552,177.51,177.48,6.30443768]
[1762145092017,8.12216552,177.53,177.5,5.63380281]
[1762145092326,8.12216552,177.51,177.48,16.94388749]
[1762145092608,8.12216552,177.49,177.42,0.67]
[1762145092819,8.12216552,177.46,177.43,16.94963134]
[1762145093018,8.12216552,177.46,177.43,17.61963134]
[1762145093913,8.12216552,177.46,177.44,5.63570784]
[1762145094807,3.75700121,177.48,177.44,5.63570784]
[1762145095118,8.12216552,177.46,177.44,5.63570784]
[1762145096292,8.12216552,177.46,177.43,5.63602547]
[1762145096535,8.12216552,177.44,177.43,6.30602547]
[1762145096798,8.12216552,177.45,177.43,6.30602547]
[1762145096998,8.12216552,177.46,177.43,6.30602547]
[1762145097198,8.12216552,177.46,177.44,0.67]
[1762145097731,8.12216552,177.47,177.44,0.67]
[1762145098100,8.12216552,177.46,177.44,0.67]
[1762145098519,8.12216552,177.46,177.43,5.63602547]
[1762145098718,8.12216552,177.46,177.43,6.30602547]
[1762145099599,8.12216552,177.46,177.44,0.67]
[1762145099925,8.12216552,177.47,177.44,0.67]
[1762145100100,8.12216552,177.46,177.44,0.67]
[1762145100931,8.12216552,177.46,177.44,6.30544123]
[1762145101124,8.12216552,177.46,177.42,22.58667859]
[1762145101327,8.81216552,177.45,177.42,5.63608956]
[1762145101824,3.75700121,177.47,177.43,0.67]
[1762145102017,4.44700121,177.47,177.43,0.67]
[1762145102216,8.12216552,177.46,177.43,0.67]
[1762145102424,8.12216552,177.45,177.43,0.67]
[1762145102927,8.12216552,177.46,177.44,5.63570784]
[1762145103234,8.12216552,177.47,177.45,0.67]
[1762145103444,70.28619477,177.49,177.45,0.67]
[1762145103626,78.40836029,177.49,177.45,0.67]
[1762145103827,70.28619477,177.49,177.45,0.67]
[1762145104014,70.28619477,177.49,177.45,8.79216552]
[1762145104218,70.28619477,177.49,177.45,17.61771629]
[1762145104410,70.28619477,177.49,177.46,0.67]
[1762145105048,70.28619477,177.49,177.47,5.63475516]
[1762145105537,70.28619477,177.49,177.47,6.30475516]
[1762145105914,70.28619477,177.49,177.47,6.33475516]
[1762145106234,70.28619477,177.53,177.48,8.82216552]
[1762145106438,3.77049836,177.52,177.48,8.82216552]
[1762145106635,3.77049836,177.52,177.49,0.7]
[1762145106851,8.12216552,177.56,177.5,8.12216552]
[1762145107138,3.77047635,177.55,177.51,6.33348543]
[1762145107332,3.77047635,177.54,177.52,0.7]
[1762145107528,54.72442056,177.58,177.52,0.7]
[1762145107529,11.89264187,177.55,177.52,0.7]
[1762145107834,8.12216552,177.55,177.52,0.7]
[1762145108026,8.12216552,177.54,177.52,0.7]
[1762145108229,11.89619112,177.54,177.52,0.7]
[1762145108534,3.49715217,177.55,177.52,0.7]
[1762145108732,3.77455843,177.57,177.53,5.63285078]
[1762145109041,3.49715217,177.54,177.53,5.63285078]
[1762145109840,7.2717106,177.54,177.53,5.63285078]
[1762145110039,3.49715217,177.54,177.53,5.63285078]
[1762145110238,7.2717106,177.54,177.53,5.63285078]
[1762145110754,7.2717106,177.54,177.51,33.80091261]
[1762145110918,7.2717106,177.55,177.52,0.7]
[1762145111121,3.49715217,177.55,177.52,0.7]
[1762145111315,3.77527283,177.54,177.52,0.7]
[1762145111621,3.77527283,177.55,177.52,0.7]
[1762145111839,3.49715217,177.56,177.52,0.7]
[1762145112147,7.27347221,177.55,177.52,0.7]
[1762145112353,3.77632004,177.54,177.52,0.7]
[1762145112534,3.49715217,177.55,177.53,5.63285078]
[1762145112733,3.77862283,177.54,177.53,5.63285078]
[1762145112936,3.77862283,177.54,177.53,6.33285078]
[1762145113858,3.77862283,177.54,177.53,16.94101702]
[1762145113859,37.69746068,177.54,177.53,16.94101702]
[1762145114034,20.592,177.5,177.43,0.7]
[1762145114352,3.49715217,177.46,177.44,16.94101702]
[1762145114660,3.49715217,177.45,177.44,16.94101702]
[1762145114824,3.49715217,177.46,177.44,16.94101702]
[1762145115018,3.49715217,177.46,177.44,23.27657305]
[1762145115338,3.49715217,177.48,177.45,0.7]
[1762145115540,3.49715217,177.47,177.45,0.7]
[1762145116353,20.592,177.5,177.44,22.57657305]
[1762145116354,5.51503242,177.46,177.44,22.57657305]
[1762145116546,5.51503242,177.45,177.43,5.63600277]
[1762145116747,5.51503242,177.44,177.43,5.63600277]
[1762145117650,6.11503242,177.44,177.38,14.79362599]
[1762145117846,5.51503242,177.41,177.39,5.63729635]
[1762145118078,5.51503242,177.4,177.39,5.63729635]
[1762145118248,5.51503242,177.41,177.39,6.33729635]
[1762145118649,5.51503242,177.42,177.39,6.33729635]
[1762145119363,5.51503242,177.41,177.39,6.33729635]
[1762145120290,5.51503242,177.41,177.39,5.63729635]
[1762145120977,5.51503242,177.42,177.39,6.33729635]
[1762145121484,3.77862283,177.44,177.39,5.63729635]
[1762145121777,9.29365525,177.44,177.4,0.7]
[1762145121964,5.51503242,177.43,177.4,0.7]
[1762145123350,5.51503242,177.43,177.41,5.63666084]
[1762145123546,5.51503242,177.43,177.4,0.7]
[1762145123750,5.51503242,177.42,177.37,21.292]
[1762145123980,5.51503242,177.42,177.38,0.7]
[1762145124357,9.29365525,177.42,177.38,20.43154671]
[1762145124556,102.1,177.41,177.38,20.43154671]
[1762145124757,102.1,177.41,177.39,0.7]
[1762145125447,102.1,177.41,177.38,19.73154671]
[1762145125448,5.51503242,177.4,177.37,0.72]
[1762145125850,107.61503242,177.41,177.38,5.63759402]
[1762145126262,107.61503242,177.41,177.38,6.35759402]
[1762145126479,102.1,177.41,177.38,5.63759402]
[1762145126652,107.61503242,177.41,177.38,5.63759402]
[1762145126864,5.51503242,177.39,177.38,5.63759402]
[1762145127049,5.51503242,177.39,177.36,5.63794757]
[1762145127372,5.51503242,177.39,177.36,6.35794757]
[1762145127574,5.51503242,177.39,177.36,5.63794757]
[1762145128181,5.51503242,177.38,177.36,5.63794757]
[1762145128487,5.51503242,177.38,177.36,6.35794757]
[1762145128670,5.51503242,177.38,177.36,5.63794757]
[1762145128857,3.77222608,177.39,177.36,5.63794757]
[1762145129057,5.51503242,177.38,177.36,5.63794757]
[1762145129585,3.77222608,177.4,177.38,5.63761416]
[1762145130081,102.1,177.41,177.38,6.35761416]
[1762145130275,101.97674131,177.41,177.38,6.35761416]
[1762145131287,101.97674131,177.41,177.38,20.45164956]
[1762145132163,101.97674131,177.41,177.39,0.72]
[1762145132361,101.97674131,177.41,177.39,6.23503242]
[1762145132780,101.97674131,177.41,177.4,0.72]
[1762145134363,101.97674131,177.41,177.4,6.35697857]
[1762145137587,101.97674131,177.41,177.4,6.30697857]
[1762145140394,101.97674131,177.48,177.4,22.64030261]
[1762145140590,3.77372574,177.47,177.42,2.2408776]
[1762145140893,6.01460334,177.47,177.42,2.2408776]
[1762145141097,6.01460334,177.47,177.43,0.67]
[1762145141470,6.01460334,177.47,177.44,5.63570784]
[1762145141867,2.2408776,177.47,177.44,6.30570784]
[1762145142380,6.01549632,177.47,177.44,6.30570784]
[1762145143196,2.2408776,177.47,177.44,6.30570784]
[1762145144803,2.2408776,177.47,177.44,20.39497745]
[1762145145392,104.21761891,177.48,177.44,20.39497745]
[1762145147416,104.81761891,177.48,177.44,14.08926961]
[1762145147586,104.81761891,177.48,177.44,14.80926961]
[1762145147786,2.2408776,177.47,177.44,14.80926961]
[1762145148415,102.57674131,177.48,177.44,14.80926961]
[1762145148611,2.2408776,177.47,177.44,20.44497745]
[1762145149412,2.8408776,177.46,177.44,19.72497745]
[1762145149619,2.2408776,177.45,177.44,19.72497745]
[1762145151125,2.2408776,177.47,177.44,14.08926961]
[1762145151902,2.2408776,177.47,177.44,14.80926961]
[1762145152104,101.97674131,177.48,177.45,0.72]
[1762145152298,104.21761891,177.48,177.45,0.72]
[1762145153224,101.97674131,177.48,177.45,0.72]
[1762145153602,104.21761891,177.48,177.45,0.72]
[1762145154024,3.77900254,177.47,177.46,5.63507269]
[1762145154321,3.7804451,177.47,177.46,5.63507269]
[1762145154623,6.0213227,177.47,177.46,5.63507269]
[1762145155120,2.2408776,177.47,177.45,5.63532327]
[1762145155293,2.2408776,177.47,177.45,6.35532327]
[1762145155492,2.2408776,177.47,177.25,11.58]
[1762145155493,6.62290116,177.46,177.39,0.72]
[1762145155708,2.2408776,177.41,177.38,0.72]
[1762145156229,2.2408776,177.4,177.39,5.63729635]
[1762145157098,2.2408776,177.4,177.38,5.6375639]
[1762145157299,6.02247599,177.39,177.38,5.6375639]
[1762145157513,3.78159839,177.39,177.38,5.6375639]
[1762145159123,3.78159839,177.39,177.38,6.3575639]
[1762145159512,2.2408776,177.43,177.38,20.4515993]
[1762145159706,3.78464126,177.42,177.39,0.72]
[1762145159903,3.78464126,177.41,177.39,0.72]
[1762145160129,2.2408776,177.44,177.39,0.72]
[1762145160333,3.78585105,177.43,177.41,2.2408776]
[1762145160542,6.95707877,177.48,177.42,19.72720099]
[1762145160746,3.78668074,177.47,177.42,22.68807859]
[1762145160917,3.78668074,177.46,177.43,0.72]
[1762145161120,3.78668074,177.45,177.43,0.72]
[1762145161346,4.71620117,177.49,177.43,2.9608776]
[1762145161553,3.79029029,177.48,177.43,2.9608776]
[1762145161743,3.79029029,177.47,177.44,0.72]
[1762145162055,3.79029029,177.46,177.42,20.44720099]
[1762145162222,3.79029029,177.45,177.42,19.72720099]
[1762145162425,6.03116789,177.44,177.42,5.63634314]
[1762145162623,3.79029029,177.43,177.42,5.63634314]
[1762145162843,3.79029029,177.43,177.42,6.35634314]
[1762145163224,3.79029029,177.43,177.4,5.63697857]
[1762145163536,3.79029029,177.42,177.4,20.44942501]
[1762145163856,10.95131688,177.46,177.4,6.35697857]
[1762145164160,2.2408776,177.43,177.4,6.35697857]
[1762145164443,3.79343416,177.42,177.4,6.35697857]
[1762145164663,3.79343416,177.41,177.4,6.35697857]
[1762145164856,3.79343416,177.41,177.4,5.63697857]
[1762145165052,3.29343416,177.41,177.4,5.63697857]
[1762145165831,3.29343416,177.41,177.4,6.35697857]
[1762145166025,5.51758681,177.44,177.4,6.35697857]
[1762145166247,5.51758681,177.45,177.41,0.69]
[1762145166626,5.51758681,177.45,177.42,5.63634314]
[1762145167920,5.51758681,177.44,177.41,5.63664288]
[1762145168126,5.51758681,177.42,177.38,6.32761416]
[1762145168336,5.51758681,177.41,177.38,6.32761416]
[1762145168555,5.51758681,177.42,177.38,6.32761416]
[1762145169060,5.51758681,177.42,177.39,0.69]
[1762145169235,101.97674131,177.45,177.39,0.69]
[1762145169436,107.49432812,177.45,177.39,0.69]
[1762145169743,101.97674131,177.45,177.39,0.69]
[1762145169937,107.49432812,177.45,177.39,0.69]
[1762145170426,101.97674131,177.45,177.4,5.51758681]
[1762145170633,101.97674131,177.45,177.42,19.72720099]
[1762145170849,26.10958681,177.48,177.42,25.2447878]
[1762145171159,26.10958681,177.48,177.43,0.69]
[1762145171928,5.51758681,177.47,177.43,0.69]
[1762145172451,26.10958681,177.48,177.43,0.69]
[1762145172954,26.10958681,177.48,177.44,5.63570784]
[1762145173467,5.51758681,177.47,177.44,5.63570784]
[1762145173628,5.51758681,177.47,177.44,6.32570784]
[1762145174063,5.51758681,177.47,177.44,5.63570784]
[1762145174355,5.51758681,177.47,177.45,0.69]
[1762145174849,26.10958681,177.48,177.46,5.63507269]
[1762145175030,5.51758681,177.48,177.46,5.63507269]
[1762145176162,4.71620117,177.52,177.47,6.20758681]
[1762145176341,6.00489795,177.54,177.48,0.69]
[1762145176342,5.51758681,177.53,177.48,0.69]
[1762145176543,4.71620117,177.54,177.46,19.72275442]
[1762145176544,5.31620117,177.52,177.46,19.72275442]
[1762145176740,4.71620117,177.54,177.49,6.20758681]
[1762145177060,3.79110972,177.53,177.5,19.71830985]
[1762145177360,3.79110972,177.52,177.5,25.92589666]
[1762145177566,10.23378798,177.56,177.51,0.69]
[1762145177858,3.7890925,177.55,177.51,0.69]
[1762145178028,3.7890925,177.54,177.53,5.51758681]
[1762145178454,3.7890925,177.54,177.53,0.69]
[1762145178842,3.7890925,177.54,177.53,6.32285078]
[1762145179248,8.11459978,177.59,177.53,28.51957752]
[1762145179450,8.11459978,177.59,177.54,0.69]
[1762145179836,4.71620117,177.61,177.54,0.69]
[1762145179837,8.11459978,177.58,177.54,0.69]
[1762145180560,8.11459978,177.59,177.54,0.69]
[1762145180737,8.11459978,177.58,177.54,0.69]
[1762145180945,8.11459978,177.58,177.55,5.63221627]
[1762145181731,8.11459978,177.58,177.55,6.32221627]
[1762145182831,8.04034506,177.58,177.55,6.32221627]
[1762145183536,8.11459978,177.59,177.56,0.69]
[1762145184048,8.11459978,177.6,177.56,0.69]
[1762145184445,3.49486484,177.6,177.56,0.69]
[1762145184672,3.49486484,177.61,177.56,0.69]
[1762145185455,3.49486484,177.61,177.57,5.63158191]
[1762145185874,3.49486484,177.6,177.58,0.67]
[1762145186574,3.49486484,177.6,177.57,5.63158191]
[1762145186752,3.49486484,177.6,177.57,6.30158191]
[1762145187877,3.49486484,177.6,177.58,0.67]
[1762145188652,105.31917667,177.62,177.58,0.67]
[1762145188881,101.82431183,177.62,177.58,0.67]
[1762145189060,105.31917667,177.62,177.58,0.67]
[1762145189592,101.82431183,177.62,177.58,0.67]
[1762145189883,105.31917667,177.62,177.59,19.7083169]
[1762145190382,105.31917667,177.62,177.59,20.3783169]
[1762145190893,101.82431183,177.62,177.6,0.67]
[1762145191065,3.69486484,177.66,177.6,4.16486484]
[1762145191391,3.69486484,177.66,177.61,0.67]
[1762145191895,3.69486484,177.66,177.62,19.70498817]
[1762145192265,3.69486484,177.66,177.63,0.67]
[1762145192464,0.2,177.66,177.63,0.67]
[1762145192896,0.2,177.66,177.64,5.62936275]
[1762145193097,4.09486484,177.65,177.58,0.67]
[1762145193263,3.49486484,177.63,177.58,6.30126478]
[1762145193462,3.49486484,177.63,177.58,20.37942673]
[1762145193662,0.2,177.66,177.59,0.67]
[1762145193964,3.49486484,177.65,177.59,4.16486484]
[1762145194191,3.69486484,177.66,177.6,3.49486484]
[1762145194382,3.69486484,177.66,177.61,3.49486484]
[1762145194383,0.2,177.66,177.61,3.49486484]
[1762145194577,3.69486484,177.66,177.61,0.67]
[1762145194769,3.49486484,177.65,177.63,5.62967967]
[1762145194969,3.49486484,177.65,177.63,6.29967967]
[1762145195486,3.69486484,177.66,177.64,0.67]
[1762145196483,3.49486484,177.65,177.63,5.62967967]
[1762145196706,3.49486484,177.64,177.63,5.62967967]
[1762145196877,3.69486484,177.66,177.63,6.29967967]
[1762145197502,0.2,177.66,177.64,0.67]
[1762145198506,0.2,177.66,177.65,3.49486484]
[1762145198903,0.2,177.66,177.65,6.29904587]
[1762145199315,0.2,177.66,177.65,9.79391071]
[1762145200093,1e-08,177.66,177.65,30.38591071]
[1762145200718,0.2,177.71,177.66,20.592]
[1762145200898,0.2,177.71,177.7,5.62746201]
[1762145201288,0.2,177.71,177.7,6.29746201]
[1762145201493,0.2,177.71,177.7,9.79232685]
[1762145201892,0.2,177.71,177.7,6.29746201]
[1762145203106,0.2,177.71,177.7,9.79232685]
[1762145203622,0.2,177.71,177.7,6.29746201]
[1762145203806,0.2,177.71,177.7,5.62746201]
[1762145203992,0.2,177.71,177.7,6.29746201]
[1762145204821,0.2,177.72,177.7,30.38432685]
[1762145205122,1e-08,177.73,177.72,5.62682871]
[1762145205305,1e-08,177.73,177.72,9.12169355]
[1762145205504,1e-08,177.73,177.72,5.62682871]
[1762145205707,3.49486485,177.73,177.72,5.62682871]
[1762145206832,34.06456027,177.73,177.65,5.62904587]
[1762145207127,3.49486484,177.67,177.65,5.62904587]
[1762145207511,3.49486484,177.67,177.65,6.29904587]
[1762145207715,3.49486484,177.68,177.65,20.37166056]
[1762145207917,3.49486484,177.67,177.65,20.37166056]
[1762145208317,3.49486484,177.66,177.65,5.62904587]
[1762145209328,3.49486484,177.66,177.63,20.37387884]